[Event "44th Chess Olympiad Open 2022"]
[Site "Chennai"]
[Date "2022.07.29"]
[Round "1.31"]
[White "Husbands, Orlando"]
[Black "Blomqvist, Erik"]
[Result "1-0"]
[WhiteElo "2353"]
[BlackElo "2521"]
[Annotator "ChessBase"]
[PlyCount "80"]
[EventDate "2022.??.??"]
[TimeControl "60"]

1. d4 {[%emt 0:00:07]} Nf6 {[%emt 0:00:40]} 2. c4 {[%emt 0:00:03]} e6 {[%emt 0:
00:00]} 3. Nc3 {[%emt 0:00:08]} Bb4 {[%emt 0:00:08]} 4. Qc2 {[%emt 0:00:06]} c5
{[%emt 0:00:22]} 5. dxc5 {[%emt 0:00:02]} O-O {[%emt 0:00:20]} 6. Nf3 {[%emt 0:
00:00]} Na6 {[%emt 0:00:07]} 7. g3 {[%emt 0:00:07]} Nxc5 {[%emt 0:00:21]} 8.
Bg2 {[%emt 0:00:03]} Nce4 {[%emt 0:01:23]} 9. O-O {[%emt 0:00:09]} Bxc3 {
[%emt 0:00:22]} 10. bxc3 {[%emt 0:00:07]} Qc7 {[%emt 0:00:25]} 11. Nd4 {
[%emt 0:14:50]} d5 {[%emt 0:00:35]} 12. cxd5 {[%emt 0:09:45]} exd5 {[%emt 0:00:
00]} 13. Bf4 {[%emt 0:05:15]} Qc5 {[%emt 0:00:26]} 14. Rab1 {[%emt 0:16:34]} b6
{[%emt 0:02:18]} 15. Rfc1 {[%emt 0:10:35]} Bd7 {[%emt 0:01:48]} 16. Be3 {
[%emt 0:00:57]} Rfc8 {[%emt 0:19:35]} 17. Qd3 {[%emt 0:00:38]} Qa5 {[%emt 0:00:
00]} 18. c4 {[%emt 0:07:54]} dxc4 {[%emt 0:06:03]} 19. Rxc4 {[%emt 0:00:08]}
Rxc4 {[%emt 0:01:32]} 20. Qxc4 {[%emt 0:00:02]} Rc8 {[%emt 0:00:36]} 21. Qb3 {
[%emt 0:04:52]} Nd2 {[%emt 0:01:35]} 22. Bxd2 {[%emt 0:05:42]} Qxd2 {[%emt 0:
00:00]} 23. e3 {[%emt 0:00:30]} Rc3 {[%emt 0:24:19]} 24. Nf3 {[%emt 0:07:26]}
Qc2 {[%emt 0:06:08]} 25. Qxc2 {[%emt 0:00:00]} Rxc2 {[%emt 0:00:02]} 26. Rd1 {
[%emt 0:01:36]} g6 {[%emt 0:04:59]} 27. e4 {[%emt 0:00:00]} Ba4 {[%emt 0:02:29]
} 28. e5 {[%emt 0:02:04]} Ng4 {[%emt 0:03:29]} 29. e6 {[%emt 0:03:53]} fxe6 {
[%emt 0:00:11]} 30. Rd4 {[%emt 0:00:02]} Rc1+ {[%emt 0:03:05]} 31. Bf1 {
[%emt 0:00:02]} Bb5 {[%emt 0:00:28]} 32. Nd2 {[%emt 0:00:01]} Ne5 {[%emt 0:00:
00]} 33. Kg2 {[%emt 0:00:31]} Bc6+ {[%emt 0:00:28]} 34. Kh3 {[%emt 0:00:18]}
Bd5 {[%emt 0:00:21]} 35. Bg2 {[%emt 0:00:25]} Bxa2 {[%emt 0:01:56]} 36. Rd8+ {
[%emt 0:00:29]} Kg7 {[%emt 0:00:06]} 37. f4 {[%emt 0:00:10]} Nf7 {[%emt 0:00:
00]} 38. Rd7 {[%emt 0:00:19]} e5 {[%emt 0:01:28]} 39. Rxa7 {[%emt 0:03:02]}
Be6+ {[%emt 0:00:06]} 40. f5 {[%emt 0:00:23]} gxf5 {[%emt 0:01:09]} 1-0

[Event "44th Chess Olympiad Open 2022"]
[Site "Chennai"]
[Date "2022.07.29"]
[Round "1.31"]
[White "Edwards, Emar"]
[Black "Westerberg, Jonathan"]
[Result "1-0"]
[WhiteElo "1695"]
[BlackElo "2476"]
[Annotator "ChessBase"]
[PlyCount "59"]
[EventDate "2022.??.??"]
[TimeControl "60"]

1. e4 {[%emt 0:00:04]} c5 {[%emt 0:00:16]} 2. Nf3 {[%emt 0:00:13]} d6 {[%emt 0:
00:00]} 3. d4 {[%emt 0:00:13]} cxd4 {[%emt 0:00:20]} 4. Nxd4 {[%emt 0:00:08]}
Nf6 {[%emt 0:00:13]} 5. Nc3 {[%emt 0:00:10]} a6 {[%emt 0:00:53]} 6. Bg5 {
[%emt 0:00:19]} e6 {[%emt 0:01:06]} 7. Qf3 {[%emt 0:12:30]} Nbd7 {[%emt 0:00:
00]} 8. O-O-O {[%emt 0:01:50]} Qc7 {[%emt 0:01:59]} 9. Kb1 {[%emt 0:20:04]} Be7
{[%emt 0:08:14]} 10. Be2 {[%emt 0:06:41]} b5 {[%emt 0:11:28]} 11. e5 {[%emt 0:
00:00]} Bb7 {[%emt 0:00:38]} 12. exd6 {[%emt 0:00:20]} Bxd6 {[%emt 0:04:06]}
13. Qe3 {[%emt 0:04:13]} Be7 {[%emt 0:12:43]} 14. a3 {[%emt 0:04:57]} O-O {
[%emt 0:09:55]} 15. f4 {[%emt 0:00:57]} Nb6 {[%emt 0:05:34]} 16. Rhe1 {[%emt 0:
00:00]} Nfd5 {[%emt 0:11:35]} 17. Nxd5 {[%emt 0:00:15]} Nxd5 {[%emt 0:00:36]}
18. Qh3 {[%emt 0:00:52]} Nxf4 {[%emt 0:04:36]} 19. Bxf4 {[%emt 0:01:51]} Qxf4 {
[%emt 0:00:26]} 20. Nxe6 {[%emt 0:05:23]} fxe6 {[%emt 0:01:46]} 21. Rd7 {
[%emt 0:00:06]} Bd5 {[%emt 0:03:31]} 22. Rxe7 {[%emt 0:01:04]} Qf2 {[%emt 0:00:
00]} 23. Qc3 {[%emt 0:02:23]} Qxg2 {[%emt 0:06:00]} 24. Bd3 {[%emt 0:00:28]}
Rac8 {[%emt 0:01:08]} 25. Qd4 {[%emt 0:00:25]} Rf2 {[%emt 0:01:07]} 26. Rxg7+ {
[%emt 0:00:46]} Qxg7 {[%emt 0:00:40]} 27. Qxf2 {[%emt 0:00:02]} Kh8 {[%emt 0:
00:00]} 28. Rg1 {[%emt 0:00:46]} Qe5 {[%emt 0:04:11]} 29. Qf7 {[%emt 0:01:34]}
Qc7 {[%emt 0:01:16]} 30. Qf6+ {[%emt 0:00:18]} 1-0

[Event "44th Chess Olympiad Open 2022"]
[Site "Chennai"]
[Date "2022.07.29"]
[Round "1.32"]
[White "Quesada Perez, Yasser"]
[Black "Maung, Maung Kyaw Zaw Hein"]
[Result "1-0"]
[WhiteElo "2568"]
[BlackElo "2121"]
[Annotator "ChessBase"]
[PlyCount "67"]
[EventDate "2022.??.??"]
[TimeControl "60"]

1. e4 {[%emt 0:00:07]} c6 {[%emt 0:00:38]} 2. d4 {[%emt 0:00:10]} d5 {[%emt 0:
00:00]} 3. e5 {[%emt 0:00:05]} c5 {[%emt 0:00:58]} 4. dxc5 {[%emt 0:00:07]} Nc6
{[%emt 0:00:08]} 5. f4 {[%emt 0:00:11]} e6 {[%emt 0:01:55]} 6. Be3 {[%emt 0:00:
00]} Nh6 {[%emt 0:12:20]} 7. c3 {[%emt 0:16:41]} Be7 {[%emt 0:07:24]} 8. Bd3 {
[%emt 0:03:56]} O-O {[%emt 0:01:38]} 9. Nf3 {[%emt 0:02:39]} f6 {[%emt 0:04:36]
} 10. Qe2 {[%emt 0:08:47]} Bd7 {[%emt 0:10:14]} 11. O-O {[%emt 0:01:41]} Qc7 {
[%emt 0:08:56]} 12. Bd4 {[%emt 0:00:51]} Nxd4 {[%emt 0:01:40]} 13. cxd4 {
[%emt 0:00:05]} b6 {[%emt 0:00:32]} 14. cxb6 {[%emt 0:00:59]} Qxb6 {[%emt 0:00:
00]} 15. Nc3 {[%emt 0:06:12]} Rab8 {[%emt 0:03:13]} 16. Rab1 {[%emt 0:01:49]}
fxe5 {[%emt 0:05:21]} 17. fxe5 {[%emt 0:00:10]} Nf5 {[%emt 0:01:44]} 18. Bxf5 {
[%emt 0:05:38]} Rxf5 {[%emt 0:00:20]} 19. Rf2 {[%emt 0:03:44]} a5 {[%emt 0:00:
00]} 20. a4 {[%emt 0:08:35]} Bb4 {[%emt 0:02:52]} 21. Nb5 {[%emt 0:04:04]} Rc8
{[%emt 0:08:33]} 22. Rbf1 {[%emt 0:03:42]} Be7 {[%emt 0:03:49]} 23. Qd3 {
[%emt 0:04:09]} Rc4 {[%emt 0:08:18]} 24. b3 {[%emt 0:05:48]} Rb4 {[%emt 0:00:
00]} 25. Qc2 {[%emt 0:00:04]} h6 {[%emt 0:07:26]} 26. Nd6 {[%emt 0:11:26]} Bxd6
{[%emt 0:00:00]} 27. exd6 {[%emt 0:00:04]} Rxb3 {[%emt 0:02:14]} 28. Ne5 {
[%emt 0:02:30]} Bxa4 {[%emt 0:00:48]} 29. Rxf5 {[%emt 0:01:37]} exf5 {[%emt 0:
00:00]} 30. Qc8+ {[%emt 0:00:05]} Kh7 {[%emt 0:00:10]} 31. Qxf5+ {[%emt 0:00:
00]} Kg8 {[%emt 0:00:22]} 32. Qe6+ {[%emt 0:00:05]} Kh7 {[%emt 0:00:04]} 33.
Qg6+ {[%emt 0:00:04]} Kg8 {[%emt 0:00:08]} 34. Rf8+ {[%emt 0:00:05]} 1-0

[Event "44th Chess Olympiad Open 2022"]
[Site "Chennai"]
[Date "2022.07.29"]
[Round "1.32"]
[White "Quesada Perez, Luis Ernesto"]
[Black "Nay Lin Tun"]
[Result "1-0"]
[WhiteElo "2549"]
[BlackElo "2045"]
[Annotator "RC"]
[PlyCount "35"]
[EventDate "2022.??.??"]
[TimeControl "60"]

1. d4 {[%emt 0:00:08]} Nf6 {[%emt 0:00:14]} 2. c4 {[%emt 0:00:10]} e6 {[%emt 0:
00:00]} 3. Nf3 {[%emt 0:00:07]} d5 {[%emt 0:00:38]} 4. Nc3 {[%emt 0:00:24]} Be7
{[%emt 0:01:04]} 5. Bg5 {[%emt 0:05:31]} O-O {[%emt 0:03:24]} 6. e3 {[%emt 0:
00:00]} Nbd7 {[%emt 0:08:43]} 7. Qc2 {[%emt 0:04:21]} a6 {[%emt 0:15:23]} 8. c5
{[%emt 0:01:50]} c6 {[%emt 0:06:06]} 9. Bd3 {[%emt 0:04:38]} h6 {[%emt 0:07:17]
} 10. Bf4 {[%emt 0:00:39]} Nh5 {[%emt 0:01:20]} 11. O-O {[%emt 0:00:08]} Nxf4 {
[%emt 0:13:08]} 12. exf4 {[%emt 0:00:12]} Qc7 {[%emt 0:00:48]} 13. g3 {[%emt 0:
00:00]} f6 {[%emt 0:04:35]} 14. Rae1 {[%emt 0:02:07]} e5 {[%emt 0:04:47]} 15.
Nh4 {[%emt 0:01:41]} e4 {[%emt 0:06:36]} 16. Nxe4 {[%emt 0:00:06]} dxe4 {
[%emt 0:01:39]} 17. Bc4+ {[%emt 0:00:15]} Rf7 {[%emt 0:03:58]} 18. Qxe4 {
[%emt 0:01:58]} 1-0

[Event "44th Chess Olympiad Open 2022"]
[Site "Chennai"]
[Date "2022.07.29"]
[Round "1.32"]
[White "Myat Thiri Aung Kyaw"]
[Black "Ortiz Suarez, Isan Reynaldo"]
[Result "0-1"]
[WhiteElo "2120"]
[BlackElo "2526"]
[Annotator "RC"]
[PlyCount "82"]
[EventDate "2022.??.??"]
[TimeControl "60"]

1. e4 {[%emt 0:00:43]} c5 {[%emt 0:00:05]} 2. Nf3 {[%emt 0:00:05]} d6 {[%emt 0:
00:00]} 3. b3 {[%emt 0:00:32]} Nc6 {[%emt 0:00:42]} 4. Bb2 {[%emt 0:00:08]} e5
{[%emt 0:00:55]} 5. Bc4 {[%emt 0:05:23]} g6 {[%emt 0:01:00]} 6. O-O {[%emt 0:
00:00]} Bg7 {[%emt 0:00:06]} 7. Nc3 {[%emt 0:01:32]} a6 {[%emt 0:04:02]} 8. Re1
{[%emt 0:07:36]} b5 {[%emt 0:02:35]} 9. Bf1 {[%emt 0:02:41]} Nge7 {[%emt 0:00:
00]} 10. Nd5 {[%emt 0:03:38]} Nxd5 {[%emt 0:01:59]} 11. exd5 {[%emt 0:00:00]}
Ne7 {[%emt 0:00:05]} 12. c3 {[%emt 0:00:00]} O-O {[%emt 0:10:12]} 13. d4 {
[%emt 0:16:13]} exd4 {[%emt 0:00:00]} 14. cxd4 {[%emt 0:00:25]} Bb7 {[%emt 0:
00:00]} 15. Qd2 {[%emt 0:14:01]} Nxd5 {[%emt 0:09:36]} 16. dxc5 {[%emt 0:00:00]
} Bxb2 {[%emt 0:01:13]} 17. Qxb2 {[%emt 0:00:00]} dxc5 {[%emt 0:00:03]} 18.
Rac1 {[%emt 0:00:00]} Rc8 {[%emt 0:02:35]} 19. Qe5 {[%emt 0:03:25]} Qb6 {
[%emt 0:08:43]} 20. h4 {[%emt 0:06:50]} Nf6 {[%emt 0:03:21]} 21. Qf4 {[%emt 0:
00:00]} Rcd8 {[%emt 0:05:31]} 22. Re5 {[%emt 0:04:44]} Rd5 {[%emt 0:01:24]} 23.
Rxd5 {[%emt 0:02:43]} Bxd5 {[%emt 0:01:35]} 24. Qe3 {[%emt 0:01:36]} Rc8 {
[%emt 0:01:19]} 25. Ne5 {[%emt 0:00:50]} Qe6 {[%emt 0:02:01]} 26. Qg3 {[%emt 0:
00:00]} Qf5 {[%emt 0:04:40]} 27. Nd3 {[%emt 0:07:33]} Be4 {[%emt 0:08:43]} 28.
Qd6 {[%emt 0:00:00]} Rc6 {[%emt 0:03:30]} 29. Qb8+ {[%emt 0:01:02]} Kg7 {
[%emt 0:00:11]} 30. Qg3 {[%emt 0:00:49]} h5 {[%emt 0:09:45]} 31. Qe3 {[%emt 0:
00:00]} Nd5 {[%emt 0:02:52]} 32. Qg3 {[%emt 0:00:40]} c4 {[%emt 0:01:02]} 33.
Ne5 {[%emt 0:01:10]} Re6 {[%emt 0:00:16]} 34. bxc4 {[%emt 0:00:52]} Qxe5 {
[%emt 0:00:21]} 35. Qxe5+ {[%emt 0:00:26]} Rxe5 {[%emt 0:00:06]} 36. cxd5 {
[%emt 0:00:23]} Rxd5 {[%emt 0:00:27]} 37. a4 {[%emt 0:01:54]} bxa4 {[%emt 0:00:
00]} 38. Rc4 {[%emt 0:00:37]} Bf5 {[%emt 0:01:40]} 39. Rxa4 {[%emt 0:00:23]}
Rd1 {[%emt 0:00:40]} 40. Ra3 {[%emt 0:01:02]} Bd7 {[%emt 0:01:13]} 41. Rd3 {
[%emt 0:30:25]} Rxf1+ {[%emt 0:30:07]} 0-1

[Event "44th Chess Olympiad Open 2022"]
[Site "Chennai"]
[Date "2022.07.29"]
[Round "1.32"]
[White "Sai Han Thiha"]
[Black "Albornoz Cabrera, Carlos Daniel"]
[Result "0-1"]
[WhiteElo "1974"]
[BlackElo "2566"]
[Annotator "TA"]
[PlyCount "75"]
[EventDate "2022.??.??"]
[TimeControl "60"]

{[%evp 11,75,0,5,12,5,6,17,1,-7,-8,0,-9,0,0,6,0,13,0,10,-16,32,-30,-29,-30,-29,
-28,-41,-27,-40,-28,0,-6,-8,-65,-75,-89,-58,-108,-87,-136,-145,-290,-315,-318,
-301,-394,-360,-492,-441,-727,-689,-1214,-1196,-2780,-2971,-2486,-364,-2173,
-2089,-1642,-1782,-29991,-29992,-29992,-29990,-29993]} 1. d4 {[%emt 0:00:02]}
Nf6 {[%emt 0:00:07]} 2. Bf4 {[%emt 0:00:09]} g6 {[%emt 0:00:10]} 3. Nf3 {
[%emt 0:00:14]} Bg7 {[%emt 0:00:05]} 4. e3 {[%emt 0:00:23]} O-O {[%emt 0:00:08]
} 5. Be2 {[%emt 0:00:41]} d6 {[%emt 0:00:04]} 6. O-O {[%emt 0:00:23]} Nh5 {
[%emt 0:00:26] Recently 6...Nc6 got a lot of attention.} 7. Bg5 {[%emt 0:06:06]
A48:1 d4 Nf6 2 Nf3 g6: Torre, London and Colle Systems.} h6 {[%emt 0:00:04]} 8.
Bh4 {[%emt 0:00:11]} g5 {[%emt 0:00:05] [#]} 9. Ne1 $1 {[%emt 0:00:15] The
position is equal.} Nf6 {[%emt 0:00:38]} 10. Bg3 {[%emt 0:00:20]} Ne4 {[%emt 0:
00:00] [#]} 11. c4 $146 {[%emt 0:24:09]} ({Predecessor:} 11. Nd2 Nxg3 12. fxg3
c5 13. c3 Nd7 14. a4 cxd4 15. exd4 e5 16. Nc2 Qe7 17. Bf3 {0-1 (45) Ortega
Morales,P (1737)-Pajuelo Morales,R (1914) Madrid 2019}) 11... f5 {[%emt 0:00:
00]} 12. Nc3 {[%emt 0:07:30]} Nxg3 {[%emt 0:00:17]} 13. hxg3 {[%emt 0:00:29]}
e6 {[%emt 0:05:14][%cal Ye7e6,Ye6e5,Ye5e4]} 14. Rc1 {[%emt 0:09:08]} Nd7 {
[%emt 0:09:11]} 15. Nd3 {[%emt 0:00:08]} c5 {[%emt 0:04:19]} (15... e5 $11) 16.
d5 {[%emt 0:18:07]} (16. g4 $14) 16... e5 $11 {[%emt 0:06:31]} 17. e4 {[%emt 0:
02:28]} Nf6 {[%emt 0:00:49]} 18. exf5 {[%emt 0:00:07]} e4 {[%emt 0:00:00]} 19.
Ne1 {[%emt 0:00:14]} Bxf5 {[%emt 0:00:11]} 20. Nc2 {[%emt 0:00:09]} h5 {
[%emt 0:06:04]} 21. Qd2 {[%emt 0:07:30]} ({Not} 21. Bxh5 $2 g4 22. Ne3 Qd7 $19)
21... g4 {[%emt 0:08:40]} 22. Ne3 {[%emt 0:08:45]} (22. Qg5 $11 Nd7 23. Qxd8 (
23. Qxh5 Ne5 $17) 23... Rfxd8 24. Ne3) 22... Bg6 $15 {[%emt 0:02:51] Black
keeps a firm grip on the game.} 23. a3 {[%emt 0:00:05]} Nd7 {[%emt 0:02:51]}
24. b4 {[%emt 0:00:15]} (24. Bd1 $15) 24... b6 {[%emt 0:03:27][%cal Yb7b6,
Yb6c5]} 25. Rb1 {[%emt 0:01:00]} (25. Bd1 $142) 25... Rf7 $17 {[%emt 0:03:07]}
26. Rfc1 {[%emt 0:05:53]} (26. Bd1 $17 {keeps fighting.}) 26... Qf6 $19 {
[%emt 0:01:43]} 27. Ncd1 {[%emt 0:00:29]} Raf8 {[%emt 0:01:51]} 28. Bf1 {
[%emt 0:03:10]} Ne5 {[%emt 0:01:45]} 29. bxc5 {[%emt 0:00:08]} bxc5 {[%emt 0:
01:00]} 30. Rb3 {[%emt 0:02:31]} (30. Be2 $142 Qg5 31. Nf1 Qxd2 32. Nxd2) 30...
h4 {[%emt 0:01:38] White must now prevent ...hxg3.} 31. Rcb1 {[%emt 0:03:27]}
hxg3 {[%emt 0:00:47] Hoping for ...Qg5.} 32. fxg3 {[%emt 0:00:00] [#]} Qxf1+ $1
{[%emt 0:02:34]} 33. Nxf1 {[%emt 0:00:06]} Rxf1+ {[%emt 0:00:05]} 34. Kh2 {
[%emt 0:00:04]} R8f5 {[%emt 0:00:48][%cal Rf5h5]} 35. Nf2 {[%emt 0:02:41]}
R1xf2 {[%emt 0:01:22]} 36. Qa5 {[%emt 0:00:31]} Nf3+ {[%emt 0:01:18]} 37. Rxf3
{[%emt 0:00:10]} exf3 {[%emt 0:00:32]} 38. Kg1 {[%emt 0:00:00] Weighted Error
Value: White=0.74/Black=0.06 (flawless)} 0-1

[Event "44th Chess Olympiad Open 2022"]
[Site "Chennai"]
[Date "2022.07.29"]
[Round "1.33"]
[White "Mannhart, Marcel"]
[Black "Dragnev, Valentin"]
[Result "0-1"]
[WhiteElo "2110"]
[BlackElo "2557"]
[Annotator "ChessBase"]
[PlyCount "64"]
[EventDate "2022.??.??"]
[TimeControl "60"]

1. Nc3 {[%emt 0:00:04]} d5 {[%emt 0:00:26]} 2. e4 {[%emt 0:00:08]} d4 {[%emt 0:
00:00]} 3. Nce2 {[%emt 0:00:08]} e5 {[%emt 0:00:13]} 4. Ng3 {[%emt 0:00:07]}
Be6 {[%emt 0:00:07]} 5. Nf3 {[%emt 0:01:49]} f6 {[%emt 0:00:12]} 6. Be2 {
[%emt 0:05:08]} Qd7 {[%emt 0:01:37]} 7. d3 {[%emt 0:01:11]} Nc6 {[%emt 0:02:51]
} 8. c4 {[%emt 0:01:02]} h5 {[%emt 0:09:39]} 9. a3 {[%emt 0:13:06]} a5 {
[%emt 0:06:48]} 10. b3 {[%emt 0:02:34]} h4 {[%emt 0:05:21]} 11. Nf1 {[%emt 0:
00:00]} h3 {[%emt 0:00:52]} 12. g3 {[%emt 0:00:32]} Bd6 {[%emt 0:05:21]} 13.
Qc2 {[%emt 0:04:15]} g5 {[%emt 0:06:06]} 14. Ng1 {[%emt 0:09:35]} Nh6 {[%emt 0:
00:00]} 15. f3 {[%emt 0:01:37]} g4 {[%emt 0:04:51]} 16. Nd2 {[%emt 0:05:48]}
Qg7 {[%emt 0:06:07]} 17. fxg4 {[%emt 0:07:48]} Nxg4 {[%emt 0:03:19]} 18. Bxg4 {
[%emt 0:00:31]} Qxg4 {[%emt 0:00:40]} 19. Qd1 {[%emt 0:01:05]} Qg7 {[%emt 0:00:
00]} 20. Qe2 {[%emt 0:04:03]} Bg4 {[%emt 0:02:21]} 21. Ngf3 {[%emt 0:00:42]}
O-O {[%emt 0:00:29]} 22. O-O {[%emt 0:13:46]} f5 {[%emt 0:01:43]} 23. Rf2 {
[%emt 0:06:42]} f4 {[%emt 0:02:09]} 24. Kh1 {[%emt 0:07:44]} fxg3 {[%emt 0:00:
00]} 25. hxg3 {[%emt 0:00:19]} Rf6 {[%emt 0:00:10]} 26. Bb2 {[%emt 0:00:40]}
Raf8 {[%emt 0:00:39]} 27. Raf1 {[%emt 0:02:25]} Qh6 {[%emt 0:00:53]} 28. Re1 {
[%emt 0:04:29]} Qh5 {[%emt 0:05:43]} 29. Ref1 {[%emt 0:02:43]} Nd8 {[%emt 0:00:
00]} 30. Bc1 {[%emt 0:02:05]} Ne6 {[%emt 0:00:31]} 31. Kh2 {[%emt 0:01:09]} Ng5
{[%emt 0:01:13]} 32. Nxg5 {[%emt 0:01:07]} Bxe2 {[%emt 0:01:08]} 0-1

[Event "44th Chess Olympiad Open 2022"]
[Site "Chennai"]
[Date "2022.07.29"]
[Round "1.33"]
[White "Schadler, Martin"]
[Black "Shengelia, David"]
[Result "0-1"]
[WhiteElo "1939"]
[BlackElo "2462"]
[Annotator "RC"]
[PlyCount "54"]
[EventDate "2022.??.??"]
[TimeControl "60"]

1. d4 {[%emt 0:00:23]} Nf6 {[%emt 0:00:00]} 2. c4 {[%emt 0:00:07]} e6 {[%emt 0:
00:00]} 3. Nc3 {[%emt 0:00:15]} Bb4 {[%emt 0:00:17]} 4. g3 {[%emt 0:00:22]} O-O
{[%emt 0:01:26]} 5. Bg2 {[%emt 0:03:29]} d5 6. Nf3 {[%emt 0:00:52]} dxc4 {
[%emt 0:12:08]} 7. O-O {[%emt 0:00:09]} Nbd7 {[%emt 0:00:38]} 8. Qa4 {[%emt 0:
00:00]} a5 {[%emt 0:02:35]} 9. a3 {[%emt 0:04:15]} Bxc3 {[%emt 0:13:02]} 10.
bxc3 {[%emt 0:00:24]} Nb6 {[%emt 0:00:06]} 11. Qc2 {[%emt 0:01:05]} Bd7 {
[%emt 0:00:20]} 12. e4 {[%emt 0:07:24]} Ba4 {[%emt 0:03:11]} 13. Qe2 {[%emt 0:
00:00]} h6 {[%emt 0:02:19]} 14. Be3 {[%emt 0:07:50]} Nxe4 {[%emt 0:02:21]} 15.
Ne5 {[%emt 0:01:47]} Nxc3 {[%emt 0:06:56]} 16. Qg4 {[%emt 0:06:46]} f5 {
[%emt 0:00:35]} 17. Qh5 {[%emt 0:01:16]} Be8 {[%emt 0:00:56]} 18. Qf3 {[%emt 0:
00:00]} Ncd5 {[%emt 0:02:53]} 19. Qe2 {[%emt 0:12:06]} Bb5 {[%emt 0:04:37]} 20.
Rfc1 {[%emt 0:24:24]} Nd7 {[%emt 0:02:46]} 21. Qc2 {[%emt 0:10:05]} Nxe5 {
[%emt 0:02:47]} 22. dxe5 {[%emt 0:00:07]} Nxe3 {[%emt 0:01:39]} 23. fxe3 {
[%emt 0:00:07]} Ba6 {[%emt 0:00:47]} 24. Rd1 {[%emt 0:02:38]} Qe7 {[%emt 0:00:
00]} 25. Rd4 {[%emt 0:00:34]} Qc5 {[%emt 0:00:15]} 26. Qc3 {[%emt 0:00:26]}
Rad8 {[%emt 0:02:12]} 27. Rad1 {[%emt 0:01:09]} Qxe5 {[%emt 0:00:34]} 0-1

[Event "44th Chess Olympiad Open 2022"]
[Site "Chennai"]
[Date "2022.07.29"]
[Round "1.34"]
[White "Gazik, Viktor"]
[Black "Traore, Bakary"]
[Result "1-0"]
[WhiteElo "2544"]
[BlackElo "2181"]
[Annotator "RC"]
[PlyCount "41"]
[EventDate "2022.??.??"]
[TimeControl "60"]

1. e4 {[%emt 0:00:03]} e5 {[%emt 0:00:21]} 2. Nf3 {[%emt 0:00:06]} Nf6 {
[%emt 0:00:37]} 3. d4 {[%emt 0:00:05]} Nxe4 {[%emt 0:00:52]} 4. dxe5 {[%emt 0:
00:00]} d5 {[%emt 0:00:45]} 5. Nbd2 {[%emt 0:00:10]} Nc6 {[%emt 0:02:46]} 6.
Bb5 {[%emt 0:00:44]} Bd7 {[%emt 0:04:52]} 7. O-O {[%emt 0:01:17]} Nxe5 {
[%emt 0:04:01]} 8. Nxe5 {[%emt 0:08:48]} Bxb5 {[%emt 0:00:47]} 9. c4 {[%emt 0:
00:00]} Nxd2 {[%emt 0:00:20]} 10. Bxd2 {[%emt 0:01:25]} dxc4 {[%emt 0:05:15]}
11. Qf3 {[%emt 0:18:45]} f6 {[%emt 0:01:22]} 12. Rfe1 {[%emt 0:04:14]} fxe5 {
[%emt 0:03:46]} 13. Rxe5+ {[%emt 0:00:18]} Be7 {[%emt 0:02:01]} 14. Bb4 {
[%emt 0:10:17]} Bc6 {[%emt 0:02:25]} 15. Qf5 {[%emt 0:03:57]} Qd3 {[%emt 0:00:
00]} 16. Rxe7+ {[%emt 0:02:59]} Kd8 {[%emt 0:00:54]} 17. Qe5 {[%emt 0:00:35]}
Bd7 {[%emt 0:00:46]} 18. Qxg7 {[%emt 0:00:22]} Re8 {[%emt 0:05:42]} 19. Rae1 {
[%emt 0:00:28]} c5 {[%emt 0:00:22]} 20. Rxe8+ {[%emt 0:00:28]} Bxe8 {[%emt 0:
00:00]} 21. Qxb7 {[%emt 0:01:31]} 1-0

[Event "44th Chess Olympiad Open 2022"]
[Site "Chennai"]
[Date "2022.07.29"]
[Round "1.34"]
[White "Repka, Christopher"]
[Black "Maiga, Baba Moulaye Abdall"]
[Result "1-0"]
[WhiteElo "2516"]
[BlackElo "1822"]
[Annotator "RC"]
[PlyCount "85"]
[EventDate "2022.??.??"]
[TimeControl "60"]

1. Nf3 {[%emt 0:00:04]} Nc6 {[%emt 0:00:17]} 2. d4 {[%emt 0:02:33]} d5 {
[%emt 0:00:35]} 3. c4 {[%emt 0:00:04]} e6 {[%emt 0:03:08]} 4. e3 {[%emt 0:00:
00]} Bb4+ {[%emt 0:00:46]} 5. Nbd2 {[%emt 0:04:13]} Nf6 {[%emt 0:00:46]} 6. Bd3
{[%emt 0:01:18]} Ne4 {[%emt 0:02:11]} 7. a3 {[%emt 0:03:38]} Bxd2+ {[%emt 0:00:
00]} 8. Nxd2 {[%emt 0:00:09]} f5 {[%emt 0:00:53]} 9. Qh5+ {[%emt 0:00:06]} g6 {
[%emt 0:00:08]} 10. Qh6 {[%emt 0:00:04]} Qe7 {[%emt 0:06:58]} 11. O-O {[%emt 0:
00:00]} Bd7 {[%emt 0:04:36]} 12. b4 {[%emt 0:00:04]} Qg5 {[%emt 0:03:35]} 13.
Qxg5 {[%emt 0:04:18]} Nxg5 {[%emt 0:00:05]} 14. Bb2 {[%emt 0:00:10]} Ne7 {
[%emt 0:02:40]} 15. Rfc1 {[%emt 0:04:02]} c6 {[%emt 0:07:12]} 16. Nb3 {[%emt 0:
00:00]} Rc8 {[%emt 0:04:51]} 17. a4 {[%emt 0:00:57]} Ne4 {[%emt 0:01:53]} 18.
a5 {[%emt 0:12:38]} Nd6 {[%emt 0:08:59]} 19. c5 {[%emt 0:00:17]} Ne4 {[%emt 0:
00:00]} 20. a6 {[%emt 0:00:12]} Rc7 {[%emt 0:03:12]} 21. f3 {[%emt 0:00:38]}
Nf6 {[%emt 0:00:54]} 22. Bc3 {[%emt 0:00:17]} bxa6 {[%emt 0:02:36]} 23. Bxa6 {
[%emt 0:00:27]} Bc8 {[%emt 0:01:11]} 24. Be2 {[%emt 0:03:21]} Bd7 {[%emt 0:00:
00]} 25. Be1 {[%emt 0:00:05]} Kf7 {[%emt 0:00:23]} 26. Ba6 {[%emt 0:00:50]} Rb8
{[%emt 0:01:35]} 27. Ra4 {[%emt 0:00:20]} Bc8 {[%emt 0:01:54]} 28. Bg3 {
[%emt 0:00:06]} Bxa6 {[%emt 0:02:22]} 29. Bxc7 {[%emt 0:00:05]} Rb7 {[%emt 0:
00:00]} 30. Rxa6 {[%emt 0:01:27]} Rxc7 {[%emt 0:00:01]} 31. Rca1 {[%emt 0:00:
00]} Nc8 {[%emt 0:01:13]} 32. Na5 {[%emt 0:00:04]} Ne7 {[%emt 0:00:27]} 33. b5
{[%emt 0:01:12]} cxb5 {[%emt 0:00:52]} 34. Rb1 {[%emt 0:00:04]} Ne8 {[%emt 0:
00:00]} 35. Rxb5 {[%emt 0:00:06]} Nc8 {[%emt 0:01:04]} 36. Nc6 {[%emt 0:00:17]}
Nf6 {[%emt 0:01:46]} 37. Nd8+ {[%emt 0:00:20]} Ke7 {[%emt 0:01:01]} 38. Nxe6 {
[%emt 0:00:05]} Rd7 {[%emt 0:00:32]} 39. Rb8 {[%emt 0:00:05]} Nd6 {[%emt 0:00:
00]} 40. Nf8 {[%emt 0:00:33]} Nde8 {[%emt 0:02:11]} 41. Nxd7 {[%emt 0:30:18]}
Kxd7 {[%emt 0:31:07]} 42. Rxa7+ {[%emt 0:00:08]} Nc7 {[%emt 0:00:07]} 43. Rf8 {
[%emt 0:00:10]} 1-0